lending/lending_fUSD_20250808
["ID","MTS","AMOUNT","RATE_DAILY","PERIOD"]
[378021947,1754670646132,-2716.43,0.00018668,2]
[378021948,1754670646142,-400.0,0.00018668,2]
[378021949,1754670646152,-274.86683089,0.00018668,2]
[378021950,1754670646161,-400.0,0.00018668,2]
[378021951,1754670646170,-3777.72,0.00018668,2]
[378021952,1754670646179,-400.0,0.00018668,2]
[378021953,1754670646189,-400.0,0.00018668,2]
[378021954,1754670646198,-2722.94,0.00018668,2]
[378021955,1754670646207,-400.0,0.00018668,2]
[378021956,1754670646217,-400.0,0.00018668,2]
[378021957,1754670646226,-400.0,0.00018668,2]
[378021958,1754670646236,-1347.38,0.00018668,2]
[378021959,1754670646245,-400.0,0.00018668,2]
[378021960,1754670646254,-400.0,0.00018668,2]
[378021961,1754670646264,-400.0,0.00018668,2]
[378021962,1754670646274,-400.0,0.00018668,2]
[378021964,1754670646283,-400.0,0.00018668,2]
[378021966,1754670646294,-536.56,0.00018668,2]
[378021968,1754670646303,-681.18,0.00018668,2]
[378021969,1754670646312,-400.0,0.00018668,2]
[378021970,1754670646321,-400.0,0.00018668,2]
[378021971,1754670646331,-400.0,0.00018668,2]
[378021972,1754670646340,-1093.75,0.00018668,2]
[378021973,1754670646349,-400.0,0.00018668,2]
[378021974,1754670646359,-400.0,0.00018668,2]
[378021975,1754670646367,-400.0,0.00018668,2]
[378021976,1754670646376,-400.0,0.00018668,2]
[378021977,1754670646386,-400.0,0.00018668,2]
[378021978,1754670646395,-497.81,0.00018668,2]
[378021979,1754670646404,-400.0,0.00018668,2]
[378021980,1754670646413,-400.0,0.00018668,2]
[378021981,1754670646422,-400.0,0.00018668,2]
[378021982,1754670646431,-825.37,0.00018668,2]
[378021983,1754670646440,-1174.75,0.00018668,2]
[378021984,1754670646449,-2980.11,0.00018668,2]
[378021985,1754670646459,-1255.19,0.00018669,2]
[378021986,1754670646469,-400.0,0.00018669,2]
[378021987,1754670646478,-637.47,0.00018669,2]
[378021988,1754670646487,-2306.88,0.00018669,2]
[378021989,1754670646497,-780.56,0.00018669,2]
[378021990,1754670646506,-400.0,0.00018669,2]
[378021991,1754670646515,-307.05185527,0.00018669,2]
[378021992,1754670646524,-400.0,0.00018669,2]
[378021993,1754670646533,-400.0,0.00018669,2]
[378021994,1754670646542,-707.57,0.00018669,2]
[378021995,1754670646551,-400.0,0.00018669,2]
[378021996,1754670646560,-491.37,0.00018669,2]
[378021997,1754670646569,-587.06,0.00018669,2]
[378021998,1754670646578,-726.09,0.00018669,2]
[378021999,1754670646587,-744.07,0.00018669,2]
[378022000,1754670646597,-553.12,0.00018669,2]
[378022001,1754670646607,-400.0,0.00018669,2]
[378022002,1754670646616,-400.0,0.00018669,2]
[378022003,1754670646626,-140.26333408,0.00018669,2]
[378022004,1754670646675,-658.28666592,0.00018669,2]
[378022005,1754670646684,-610.02,0.00018669,2]
[378022006,1754670646694,-400.0,0.00018669,2]
[378022007,1754670646703,-400.0,0.00018669,2]
[378022008,1754670646712,-400.0,0.00018669,2]
[378022009,1754670646723,-400.0,0.00018669,2]
[378022010,1754670646732,-719.28,0.00018669,2]
[378022011,1754670646741,-402.36,0.00018669,2]
[378022012,1754670646751,-138.38937307,0.00018669,2]
[378022013,1754670646770,-678.34062693,0.00018669,2]
[378022014,1754670646779,-486.39,0.00018669,2]
[378022015,1754670646788,-400.0,0.00018669,2]
[378022016,1754670646797,-430.97,0.00018669,2]
[378022017,1754670646806,-998.66,0.00018669,2]
[378022018,1754670646817,-678.48,0.00018669,2]
[378022019,1754670646826,-697.55,0.00018669,2]
[378022020,1754670646835,-400.0,0.00018669,2]
[378022021,1754670646846,-698.0,0.00018669,2]
[378022022,1754670646855,-400.0,0.00018669,2]
[378022023,1754670646864,-490.83,0.00018669,2]
[378022024,1754670646873,-404.17,0.00018669,2]
[378022025,1754670646882,-1081.0,0.00018669,2]
[378022026,1754670646891,-400.0,0.00018669,2]
[378022027,1754670646901,-400.0,0.00018669,2]
[378022028,1754670646910,-1071.11,0.00018669,2]
[378022029,1754670646919,-400.0,0.00018669,2]
[378022030,1754670646929,-400.0,0.00018669,2]
[378022031,1754670646938,-871.48,0.00018669,2]
[378022032,1754670646947,-910.84,0.00018669,2]
[378022033,1754670646956,-403.52,0.00018669,2]
[378022034,1754670646966,-400.0,0.00018669,2]
[378022035,1754670646975,-605.73,0.00018669,2]
[378022036,1754670646984,-426.72,0.00018669,2]
[378022037,1754670646993,-846.95,0.00018669,2]
[378022038,1754670647002,-732.45,0.00018669,2]
[378022039,1754670647012,-400.0,0.00018669,2]
[378022040,1754670647021,-921.83,0.00018669,2]
[378022041,1754670647031,-400.0,0.00018669,2]
[378022042,1754670647040,-599.84,0.00018669,2]
[378022043,1754670647049,-833.73,0.00018669,2]
[378022044,1754670647061,-514.5,0.00018669,2]
[378022045,1754670647071,-400.0,0.00018669,2]
[378022046,1754670647080,-400.0,0.00018669,2]
[378022047,1754670647089,-400.0,0.00018669,2]
[378022048,1754670647099,-1299.61,0.00018669,2]
[378022049,1754670647108,-400.0,0.00018669,2]
[378022050,1754670647117,-723.43,0.00018669,2]
[378022051,1754670647127,-1122.99,0.00018669,2]
[378022052,1754670647137,-554.49,0.00018669,2]
[378022053,1754670647146,-924.98,0.00018669,2]
[378022054,1754670647155,-400.0,0.00018669,2]
[378022055,1754670647164,-400.0,0.00018669,2]
[378022056,1754670647174,-1464.54,0.00018669,2]
[378022057,1754670647183,-400.0,0.00018669,2]
[378022058,1754670647193,-400.0,0.00018669,2]
[378022059,1754670647202,-1365.68,0.00018669,2]
[378022060,1754670647211,-401.74,0.00018669,2]
[378022061,1754670647221,-400.0,0.00018669,2]
[378022062,1754670647230,-1163.65,0.00018669,2]
[378022063,1754670647239,-739.18,0.00018669,2]
[378022064,1754670647248,-427.96,0.00018669,2]
[378022065,1754670647257,-889.5,0.00018669,2]
[378022066,1754670647266,-400.0,0.00018669,2]
[378022067,1754670647275,-812.95,0.00018669,2]
[378022068,1754670647284,-1463.13,0.00018669,2]
[378022069,1754670647293,-1390.76,0.00018669,2]
[378022070,1754670647302,-1935.30732686,0.00018669,2]
[378022071,1754670648200,176.3,0.00017641,2]
[378022072,1754670648281,-151.57272812,0.00018295,2]
[378022073,1754670648291,-500.0,0.00018395,2]
[378022074,1754670648301,-400.0,0.00018395,2]
[378022075,1754670648310,-400.0,0.00018395,2]
[378022076,1754670648320,-500.0,0.00018668,2]
[378022077,1754670648329,-547.84,0.00018668,2]
[378022078,1754670648339,-919.64267314,0.00018669,2]
[378022079,1754670648348,-400.0,0.00018669,2]
[378022080,1754670648358,-400.0,0.00018669,2]
[378022081,1754670648368,-400.0,0.00018669,2]
[378022082,1754670648377,-400.0,0.00018669,2]
[378022083,1754670648387,-712.35777802,0.00018669,2]
[378022084,1754670648414,-214.29222198,0.00018669,2]
[378022085,1754670648424,-400.0,0.00018669,2]
[378022086,1754670648433,-495.65,0.00018669,2]
[378022087,1754670648443,-400.0,0.00018669,2]
[378022088,1754670648452,-325.51376301,0.00018669,2]
[378022089,1754670648462,-1155.56,0.00018669,2]
[378022090,1754670648473,-400.0,0.00018669,2]
[378022091,1754670648483,-27.32547753,0.00018669,2]
[378022092,1754670648495,-2039.45452247,0.00018669,2]
[378022093,1754670648505,-677.73,0.00018669,2]
[378022094,1754670648515,-725.22,0.00018669,2]
[378022095,1754670648524,-695.82956753,0.00018669,2]
[378022096,1754670648536,-289.91043247,0.00018669,2]
[378022097,1754670648545,-351.61523611,0.00018669,2]
[378022098,1754670649488,-372.27143452,0.00018385,2]
[378022099,1754670649500,-1092.00000429,0.00018385,2]
[378022100,1754670649512,-1182.52094405,0.00018385,2]
[378022101,1754670649522,-400.0,0.00018395,2]
[378022102,1754670649532,-410.16,0.00018395,2]
[378022103,1754670649542,-231.27476389,0.00018669,2]
[378022104,1754670649551,-400.0,0.00018669,2]
[378022105,1754670649562,-571.55,0.00018669,2]
[378022106,1754670649572,-1050.77,0.00018669,2]
[378022107,1754670649583,-828.76,0.00018669,2]
[378022108,1754670649594,-403.81,0.00018669,2]
[378022109,1754670649604,-521.14,0.00018669,2]
[378022110,1754670649614,-805.66,0.00018669,2]
[378022111,1754670649624,-400.0,0.00018669,2]
[378022112,1754670649634,-514.97,0.00018669,2]
[378022113,1754670649644,-499.04,0.00018669,2]
[378022114,1754670649654,-561.08,0.00018669,2]
[378022115,1754670649663,-761.96,0.00018669,2]
[378022116,1754670649673,-1280.64,0.00018669,2]
[378022117,1754670649682,-507.52,0.00018669,2]
[378022118,1754670649692,-657.66,0.00018669,2]
[378022119,1754670649702,-1139.37,0.00018669,2]
[378022120,1754670649711,-1269.81,0.00018669,2]
[378022121,1754670649722,-400.0,0.00018669,2]
[378022122,1754670650012,-414.38,0.00018669,2]
[378022123,1754670650022,-949.29,0.00018669,2]
[378022124,1754670650032,-400.0,0.00018669,2]
[378022125,1754670650042,-490.05,0.00018669,2]
[378022126,1754670650052,-1213.58429256,0.00018669,2]
[378022127,1754670650066,-90.86570744,0.00018669,2]
[378022128,1754670650077,-736.55,0.00018669,2]
[378022129,1754670650087,-755.91,0.00018669,2]
[378022130,1754670650096,-253.76769256,0.00018669,2]
[378022131,1754670686555,478.93,0.00017806,2]
[378022132,1754670729353,686.86559073,0.00030136,120]
[378022133,1754670758195,188.7,0.00014185,2]
[378022134,1754670760597,24795.14,0.00017731,2]
[378022135,1754670832051,1250.0,0.00029874,120]
[378022136,1754670849866,1250.0,0.00030136,120]
[378022138,1754670891873,150.0,0.000153,2]
[378022139,1754670959783,153.94,0.00017709,2]
[378022140,1754670965486,153.94,0.00017768,2]
[378022141,1754670965702,153.94,0.00017827,2]
[378022142,1754670965908,153.94,0.00017886,2]
[378022143,1754670971694,666.0,0.00017721,3]
[378022144,1754671013846,165.63,0.00017735,2]
[378022146,1754671090022,241.58,0.00015068,2]
[378022147,1754671090659,241.58,0.00016647,2]
[378022150,1754671260737,500.0,0.00017584,2]
[378022153,1754671348890,1000.0,0.00017546,2]
[378022154,1754671366589,63566.94,0.00017549,2]
[378022155,1754671381825,186.94,0.00017549,2]
[378022156,1754671389838,233.94,0.00017549,2]
[378022158,1754671480580,-202.07065295,0.0001807,2]
[378022160,1754671517944,150.0,0.00017088,2]
[378022161,1754671576204,518.0,0.0001722,2]
[378022163,1754671586770,193.31,0.00013699,2]
[378022164,1754671590021,201.86,0.00017556,2]
[378022166,1754671714710,23900.0,0.00017477,2]
[378022180,1754671832051,-1762.18436229,0.0001807,2]
[378022181,1754671832061,-2500.0,0.00018098,2]
[378022182,1754671832070,-2500.0,0.00018164,2]
[378022183,1754671832079,-241.58,0.00018226,2]
[378022184,1754671832088,-519.28432886,0.00018291,2]
[378022185,1754671832110,-680.71567114,0.00018291,2]
[378022186,1754671832131,-300.0,0.00018292,2]
[378022187,1754671832141,-300.0,0.00018293,2]
[378022188,1754671832150,-5000.0,0.00018294,2]
[378022189,1754671832159,-153.06917544,0.00018294,2]
[378022190,1754671832168,-800.0,0.000183,6]
[378022191,1754671832178,-2764.0242,0.00018356,2]
[378022192,1754671832194,-500.0,0.00018373,2]
[378022193,1754671832210,-267.46074303,0.00018373,2]
[378022194,1754671832219,-5199.43684444,0.00018373,2]
[378022195,1754671832228,-600.0,0.00018383,2]
[378022196,1754671832238,-430.05473421,0.00018383,2]
[378022197,1754671832247,-600.0,0.00018383,2]
[378022198,1754671832256,-160.0,0.00018383,2]
[378022199,1754671832268,-600.0,0.00018383,2]
[378022200,1754671832277,-600.0,0.00018383,2]
[378022201,1754671832286,-500.0,0.00018383,2]
[378022202,1754671832295,-600.0,0.00018383,2]
[378022203,1754671832305,-151.0,0.00018383,2]
[378022204,1754671832314,-600.0,0.00018383,2]
[378022205,1754671832323,-500.0,0.00018383,2]
[378022206,1754671832332,-600.0,0.00018383,2]
[378022207,1754671832341,-600.0,0.00018383,2]
[378022208,1754671832351,-600.0,0.00018383,2]
[378022209,1754671832360,-600.0,0.00018383,2]
[378022210,1754671832370,-600.0,0.00018383,2]
[378022211,1754671832379,-600.0,0.00018383,2]
[378022212,1754671832388,-255.86758873,0.00018383,2]
[378022214,1754671832397,-151.0,0.00018383,2]
[378022216,1754671832406,-500.0,0.00018383,2]
[378022218,1754671832420,-500.0,0.00018383,2]
[378022220,1754671832429,-500.0,0.00018383,2]
[378022222,1754671832438,-500.0,0.00018383,2]
[378022224,1754671832447,-500.0,0.00018383,2]
[378022226,1754671832459,-500.0,0.00018383,2]
[378022227,1754671832468,-500.0,0.00018383,2]
[378022228,1754671832478,-500.0,0.00018383,2]
[378022229,1754671832487,-500.0,0.00018383,2]
[378022230,1754671832498,-500.0,0.00018383,2]
[378022231,1754671832508,-500.0,0.00018383,2]
[378022232,1754671832519,-500.0,0.00018383,2]
[378022233,1754671832527,-513.99671889,0.00018383,2]
[378022234,1754671832536,-500.0,0.00018383,2]
[378022235,1754671832545,-500.0,0.00018383,2]
[378022236,1754671832556,-500.0,0.00018383,2]
[378022237,1754671832567,-500.0,0.00018383,2]
[378022238,1754671832578,-500.0,0.00018383,2]
[378022239,1754671832588,-500.0,0.00018383,2]
[378022240,1754671832597,-500.0,0.00018383,2]
[378022241,1754671832607,-500.0,0.00018383,2]
[378022242,1754671832616,-500.0,0.00018383,2]
[378022244,1754671832625,-200.0,0.00018383,2]
[378022245,1754671832635,-151.0,0.00018383,2]
[378022246,1754671832643,-151.0,0.00018383,2]
[378022247,1754671832654,-151.0,0.00018383,2]
[378022248,1754671832663,-151.0,0.00018383,2]
[378022249,1754671832672,-151.0,0.00018383,2]
[378022250,1754671832681,-151.0,0.00018383,2]
[378022251,1754671832690,-151.0,0.00018383,2]
[378022252,1754671832700,-151.0,0.00018383,2]
[378022253,1754671832710,-151.0,0.00018383,2]
[378022254,1754671832721,-151.0,0.00018383,2]
[378022255,1754671832731,-157.92435465,0.00018383,2]
[378022256,1754671832741,-460.16,0.00018384,2]
[378022257,1754671832751,-500.0,0.00018393,2]
[378022258,1754671832761,-500.0,0.00018393,2]
[378022259,1754671832770,-500.0,0.00018393,2]
[378022260,1754671832779,-223.3424409,0.00018393,2]
[378022261,1754671832789,-400.0,0.00018393,2]
[378022262,1754671832799,-400.0,0.00018393,2]
[378022263,1754671832809,-535.3417706,0.00018393,2]
[378022264,1754671832819,-400.0,0.00018393,2]
[378022265,1754671832829,-400.0,0.00018393,2]
[378022266,1754671832839,-400.0,0.00018393,2]
[378022267,1754671832850,-400.0,0.00018393,2]
[378022268,1754671832859,-400.0,0.00018393,2]
[378022269,1754671832868,-400.0,0.00018393,2]
[378022270,1754671832877,-400.0,0.00018393,2]
[378022271,1754671832886,-442.88,0.00018393,2]
[378022272,1754671832895,-400.0,0.00018393,2]
[378022273,1754671832904,-648.9,0.00018393,2]
[378022274,1754671832915,-400.0,0.00018393,2]
[378022275,1754671832925,-483.38,0.00018393,2]
[378022276,1754671832935,-253.65237729,0.00018393,2]
[378022277,1754671832945,-406.2,0.00018393,2]
[378022278,1754671832956,-621.94,0.00018393,2]
[378022279,1754671832964,-400.0,0.00018393,2]
[378022280,1754671832974,-400.0,0.00018393,2]
[378022281,1754671832983,-400.0,0.00018393,2]
[378022282,1754671832992,-400.0,0.00018393,2]
[378022283,1754671833002,-400.0,0.00018393,2]
[378022284,1754671833011,-402.16612434,0.00018393,2]
[378022285,1754671833020,-400.0,0.00018393,2]
[378022286,1754671833031,-954.24,0.00018393,2]
[378022287,1754671833040,-400.0,0.00018393,2]
[378022288,1754671833050,-500.0,0.00018393,2]
[378022289,1754671833059,-400.0,0.00018393,2]
[378022290,1754671833069,-400.0,0.00018393,2]
[378022291,1754671833079,-400.0,0.00018393,2]
[378022292,1754671833088,-400.0,0.00018393,2]
[378022293,1754671833097,-400.0,0.00018393,2]
[378022294,1754671833107,-400.0,0.00018393,2]
[378022295,1754671833118,-498.77,0.00018393,2]
[378022296,1754671833127,-400.0,0.00018393,2]
[378022298,1754671833136,-400.0,0.00018393,2]
[378022300,1754671833147,-834.94,0.00018393,2]
[378022302,1754671833157,-400.0,0.00018393,2]
[378022304,1754671833167,-400.0,0.00018393,2]
[378022306,1754671833177,-1835.78,0.00018393,2]
[378022307,1754671833186,-443.82805151,0.00018393,2]
[378022308,1754671833196,-480.94,0.00018393,2]
[378022309,1754671833205,-400.0,0.00018393,2]
[378022310,1754671833215,-400.0,0.00018393,2]
[378022311,1754671833224,-400.0,0.00018393,2]
[378022312,1754671833234,-400.0,0.00018393,2]
[378022313,1754671833244,-592.86,0.00018393,2]
[378022314,1754671833253,-2118.67,0.00018393,2]
[378022315,1754671833263,-400.0,0.00018393,2]
[378022316,1754671833273,-400.0,0.00018393,2]
[378022317,1754671833282,-845.01,0.00018393,2]
[378022318,1754671833292,-400.0,0.00018393,2]
[378022319,1754671833301,-400.0,0.00018393,2]
[378022320,1754671833311,-417.15,0.00018393,2]
[378022321,1754671833321,-400.77569369,0.00018393,2]
[378022322,1754671833331,-400.0,0.00018393,2]
[378022323,1754671833340,-400.0,0.00018393,2]
[378022324,1754671833350,-400.0,0.00018393,2]
[378022325,1754671833360,-400.0,0.00018393,2]
[378022326,1754671833369,-1201.38,0.00018393,2]
[378022327,1754671833379,-400.0,0.00018393,2]
[378022328,1754671833388,-400.0,0.00018393,2]
[378022329,1754671833398,-400.0,0.00018393,2]
[378022330,1754671833408,-400.0,0.00018393,2]
[378022331,1754671833421,-400.0,0.00018393,2]
[378022332,1754671833432,-400.0,0.00018393,2]
[378022333,1754671833441,-609.61,0.00018393,2]
[378022334,1754671833452,-400.0,0.00018393,2]
[378022335,1754671833462,-400.0,0.00018393,2]
[378022336,1754671833471,-400.0,0.00018393,2]
[378022337,1754671833481,-400.0,0.00018393,2]
[378022338,1754671833491,-400.0,0.00018393,2]
[378022339,1754671833500,-545.77,0.00018393,2]
[378022340,1754671833510,-847.9,0.00018393,2]
[378022341,1754671833521,-400.0,0.00018393,2]
[378022342,1754671833531,-2737.58,0.00018393,2]
[378022343,1754671833541,-400.0,0.00018393,2]
[378022344,1754671833550,-814.01,0.00018393,2]
[378022345,1754671833559,-459.59356135,0.00018393,2]
[378022346,1754671833571,-400.0,0.00018393,2]
[378022347,1754671833585,-400.0,0.00018393,2]
[378022348,1754671833596,-400.0,0.00018393,2]
[378022349,1754671833606,-2243.06,0.00018393,2]
[378022350,1754671833616,-155.776285,0.00018393,2]
[378022351,1754671833626,-400.0,0.00018393,2]
[378022352,1754671833635,-400.0,0.00018393,2]
[378022353,1754671833644,-400.0,0.00018393,2]
[378022354,1754671833654,-566.04,0.00018393,2]
[378022355,1754671833665,-830.43,0.00018393,2]
[378022356,1754671833674,-400.0,0.00018393,2]
[378022357,1754671833684,-576.59,0.00018393,2]
[378022358,1754671833693,-456.1,0.00018393,2]
[378022359,1754671833703,-160.15746509,0.00018393,2]
[378022360,1754671833712,-939.43,0.00018393,2]
[378022361,1754671833721,-400.0,0.00018393,2]
[378022362,1754671833731,-400.0,0.00018393,2]
[378022363,1754671833740,-400.0,0.00018393,2]
[378022364,1754671833749,-400.0,0.00018393,2]
[378022365,1754671833759,-400.0,0.00018393,2]
[378022366,1754671833770,-400.0,0.00018393,2]
[378022367,1754671833779,-400.0,0.00018393,2]
[378022368,1754671833790,-400.0,0.00018393,2]
[378022369,1754671833800,-400.0,0.00018393,2]
[378022370,1754671833810,-2807.41,0.00018393,2]
[378022371,1754671833820,-526.27202617,0.00018393,2]
[378022372,1754671833830,-152.542267,0.00018393,2]
[378022373,1754671833840,-400.0,0.00018393,2]
[378022374,1754671833850,-2741.17,0.00018393,2]
[378022375,1754671833859,-400.0,0.00018393,2]
[378022376,1754671833869,-941.74,0.00018393,2]
[378022377,1754671833879,-400.0,0.00018393,2]
[378022378,1754671833888,-400.0,0.00018393,2]
[378022379,1754671833899,-400.0,0.00018393,2]
[378022380,1754671833909,-799.03,0.00018393,2]
[378022381,1754671833918,-400.0,0.00018393,2]
[378022382,1754671833927,-450.96,0.00018393,2]
[378022383,1754671833936,-977.57,0.00018393,2]
[378022384,1754671833945,-168.680264,0.00018393,2]
[378022385,1754671833955,-402.4117891,0.00018393,2]
[378022386,1754671833964,-400.0,0.00018393,2]
[378022387,1754671833973,-414.35,0.00018393,2]
[378022388,1754671833982,-1330.03,0.00018393,2]
[378022389,1754671833992,-400.0,0.00018393,2]
[378022390,1754671834001,-400.0,0.00018393,2]
[378022391,1754671834010,-1736.66,0.00018393,2]
[378022392,1754671834021,-400.0,0.00018393,2]
[378022393,1754671834030,-1804.56,0.00018393,2]
[378022394,1754671834040,-441.27,0.00018393,2]
[378022395,1754671834049,-400.0,0.00018393,2]
[378022396,1754671834059,-1060.55,0.00018393,2]
[378022397,1754671834068,-400.0,0.00018393,2]
[378022398,1754671834077,-400.0,0.00018393,2]
[378022399,1754671834087,-400.0,0.00018393,2]
[378022400,1754671834097,-4908.23,0.00018393,2]
[378022401,1754671834108,-400.0,0.00018393,2]
[378022402,1754671834118,-400.0,0.00018393,2]
[378022403,1754671834128,-759.7,0.00018393,2]
[378022404,1754671834138,-400.0,0.00018393,2]
[378022405,1754671834148,-1235.1,0.00018393,2]
[378022406,1754671834158,-400.0,0.00018393,2]
[378022407,1754671834168,-400.0,0.00018393,2]
[378022408,1754671834178,-3599.21,0.00018393,2]
[378022409,1754671834188,-400.0,0.00018393,2]
[378022410,1754671834197,-401.70394548,0.00018393,2]
[378022411,1754671834207,-400.0,0.00018393,2]
[378022412,1754671834216,-400.0,0.00018393,2]
[378022413,1754671834225,-400.0,0.00018393,2]
[378022414,1754671834235,-400.0,0.00018393,2]
[378022415,1754671834245,-3305.5,0.00018393,2]
[378022416,1754671834254,-400.0,0.00018393,2]
[378022417,1754671834265,-2731.77,0.00018393,2]
[378022418,1754671834274,-400.0,0.00018393,2]
[378022419,1754671834284,-400.0,0.00018393,2]
[378022420,1754671834293,-378.47718118,0.00018393,2]
[378022421,1754671834303,-400.0,0.00018393,2]
[378022422,1754671834314,-624.41,0.00018393,2]
[378022423,1754671834323,-400.0,0.00018393,2]
[378022424,1754671834333,-482.75,0.00018393,2]
[378022425,1754671834343,-491.85,0.00018393,2]
[378022426,1754671834353,-876.2,0.00018393,2]
[378022427,1754671834362,-400.0,0.00018393,2]
[378022428,1754671834372,-400.0,0.00018393,2]
[378022429,1754671834382,-400.0,0.00018393,2]
[378022430,1754671834391,-400.0,0.00018393,2]
[378022431,1754671834401,-400.0,0.00018393,2]
[378022432,1754671834412,-400.0,0.00018393,2]
[378022433,1754671834429,-400.0,0.00018393,2]
[378022434,1754671834438,-400.0,0.00018393,2]
[378022435,1754671834447,-400.0,0.00018394,2]
[378022436,1754671834458,-697.92,0.00018394,2]
[378022437,1754671834467,-400.0,0.00018394,2]
[378022438,1754671834477,-400.0,0.00018394,2]
[378022439,1754671834487,-400.0,0.00018394,2]
[378022440,1754671834496,-400.0,0.00018394,2]
[378022441,1754671834506,-400.0,0.00018394,2]
[378022442,1754671834516,-400.0,0.00018394,2]
[378022443,1754671834526,-400.0,0.00018394,2]
[378022444,1754671834535,-400.0,0.00018394,2]
[378022445,1754671834545,-400.0,0.00018394,2]
[378022446,1754671834556,-400.0,0.00018394,2]
[378022447,1754671834566,-400.0,0.00018394,2]
[378022448,1754671834575,-400.0,0.00018394,2]
[378022449,1754671834585,-400.0,0.00018394,2]
[378022450,1754671834594,-400.0,0.00018394,2]
[378022451,1754671834604,-400.0,0.00018394,2]
[378022452,1754671834613,-400.0,0.00018394,2]
[378022453,1754671834622,-487.41,0.00018394,2]
[378022454,1754671834632,-400.0,0.00018394,2]
[378022455,1754671834642,-400.0,0.00018394,2]
[378022456,1754671834652,-324.47453239,0.00018394,2]
[378022457,1754671834662,-400.0,0.00018394,2]
[378022458,1754671834671,-400.0,0.00018394,2]
[378022459,1754671834680,-400.0,0.00018394,2]
[378022460,1754671834689,-400.0,0.00018394,2]
[378022461,1754671834699,-435.13,0.00018394,2]
[378022462,1754671834708,-400.0,0.00018394,2]
[378022463,1754671834718,-449.98,0.00018394,2]
[378022464,1754671834728,-400.0,0.00018394,2]
[378022465,1754671834737,-400.0,0.00018394,2]
[378022466,1754671834746,-650.77,0.00018394,2]
[378022467,1754671834755,-427.12,0.00018394,2]
[378022468,1754671834771,-400.0,0.00018394,2]
[378022469,1754671834780,-400.0,0.00018394,2]
[378022470,1754671834790,-400.0,0.00018394,2]
[378022471,1754671834799,-400.0,0.00018394,2]
[378022472,1754671834808,-400.0,0.00018394,2]
[378022473,1754671834818,-400.0,0.00018394,2]
[378022474,1754671834826,-400.0,0.00018394,2]
[378022475,1754671834836,-503.71,0.00018394,2]
[378022476,1754671834849,-400.0,0.00018394,2]
[378022477,1754671834860,-400.0,0.00018394,2]
[378022478,1754671834869,-400.0,0.00018394,2]
[378022479,1754671834878,-1000.0,0.00018394,2]
[378022480,1754671834888,-400.0,0.00018394,2]
[378022481,1754671834897,-500.0,0.00018394,2]
[378022482,1754671834906,-400.0,0.00018394,2]
[378022483,1754671834916,-2154.22,0.00018394,2]
[378022484,1754671834925,-400.0,0.00018394,2]
[378022485,1754671834934,-400.0,0.00018394,2]